bitfinex-derivatives/quotes_ETHF0:USTF0_20250410
["timestamp","ask_amount","ask_price","bid_price","bid_amount"]
[1744266887741,13.83816561,1611.3,1611.2,56.04275]
[1744266888933,0.00931619,1611.4,1611.2,54.8011]
[1744266889132,0.00931619,1611.4,1611.3,2.78988]
[1744266890641,0.00931619,1611.4,1611.3,7.78988]
[1744266890840,0.00931619,1611.4,1611.3,10.99768]
[1744266891338,0.00931619,1611.4,1611.3,7.78988]
[1744266891733,1.56671619,1611.4,1611.3,7.78988]
[1744266891932,16.85001619,1611.4,1611.3,5.0]
[1744266893141,1.24158,1611.3,1611.2,40.80931619]
[1744266893339,4.17618,1611.3,1611.2,0.00931619]
[1744266893639,9.17618,1611.3,1611.2,0.00931619]
[1744266895738,1.24196,1610.8,1610.7,40.8]
[1744266896236,1.24196,1610.8,1610.7,45.8]
[1744266896432,4.13526,1610.8,1610.7,45.8]
[1744266897141,9.13526,1610.8,1610.7,45.8]
[1744266897539,1.24204,1610.7,1610.6,0.00931619]
[1744266897737,11.87944,1610.7,1610.6,0.00931619]
[1744266898041,16.87944,1610.7,1610.6,0.00931619]
[1744266898238,11.87944,1610.7,1610.6,0.00931619]
[1744266898438,16.87944,1610.7,1610.6,0.00931619]
[1744266898938,18.20354,1610.7,1610.6,0.00931619]
[1744266902234,13.20354,1610.7,1610.6,0.00931619]
[1744266902438,2.9197,1610.7,1610.6,1.25143619]
[1744266902838,1.24182,1611.0,1610.6,6.25143619]
[1744266903038,1.24189,1610.9,1610.8,1.24191]
[1744266903242,1.5889,1611.0,1610.7,4.271]
[1744266903443,1.5889,1610.8,1610.7,5.51304]
[1744266904142,2.83086,1610.8,1610.7,10.51304]
[1744266904346,1.5889,1610.8,1610.7,10.51304]
[1744266907947,4.4301,1611.1,1610.8,3.10491]
[1744266908247,1.2223,1611.1,1611.0,1.24181]
[1744266908950,1.24173,1611.1,1611.0,1.24181]
[1744266909139,1.24173,1611.1,1611.0,6.24181]
[1744266909544,2.92993,1611.1,1611.0,6.24181]
[1744266909748,2.92993,1611.1,1611.0,5.0]
[1744266909948,2.92993,1611.1,1611.0,6.24181]
[1744266911152,2.92993,1611.1,1611.0,5.0]
[1744266911849,2.92993,1611.1,1611.0,6.24181]
[1744266913846,2.92993,1611.1,1611.0,5.0]
[1744266915448,2.92993,1611.1,1611.0,6.24181]
[1744266915953,2.92993,1611.1,1611.0,5.0]
[1744266917151,2.92993,1611.1,1611.0,6.24181]
[1744266917853,2.92993,1611.1,1611.0,5.0]
[1744266924252,1.24188,1610.9,1610.8,3.69204]
[1744266924452,1.24188,1610.9,1610.8,5.29664]
[1744266924958,4.44965,1611.0,1610.9,1.24188]
[1744266925151,2.92738,1611.1,1611.0,1.24177]
[1744266925350,1.24178,1611.1,1611.0,1.24177]
[1744266926760,6.06391,1611.2,1611.1,1.24173]
[1744266926959,1.18591619,1611.4,1611.1,2.8717]
[1744266927164,1.62371619,1611.4,1611.3,1.24158]
[1744266927364,0.00931619,1611.4,1611.3,1.24158]
[1744266927659,0.00931619,1611.4,1611.3,2.90578]
[1744266928263,0.00931619,1611.4,1611.3,7.90578]
[1744266928454,0.00931619,1611.4,1611.3,12.90578]
[1744266928759,7.20655915,1611.6,1611.5,1.24142]
[1744266928961,7.20655915,1611.6,1611.5,8.67822]
[1744266929163,7.20655915,1611.6,1611.5,13.67822]
[1744266929361,7.20655915,1611.6,1611.5,57.39972]
[1744266929755,7.20655915,1611.6,1611.5,62.39972]
[1744266931661,5.75455915,1611.6,1611.5,68.39572]
[1744266932462,0.00931619,1611.7,1611.6,1.24135]
[1744266932758,0.00931619,1611.7,1611.6,4.21075]
[1744266932963,9.60874553,1611.8,1611.7,1.24127]
[1744266933159,9.60874553,1611.8,1611.7,51.91157]
[1744266933359,3.2078,1612.3,1612.2,1.24088]
[1744266933562,7.25259711,1612.4,1612.3,1.24081]
[1744266934255,7.25259711,1612.4,1612.3,42.04081]
[1744266935163,7.25259711,1612.4,1612.3,47.04081]
[1744266936567,7.25259711,1612.4,1612.3,52.04081]
[1744266937558,7.25259711,1612.4,1612.3,47.04081]
[1744266938167,7.25259711,1612.4,1612.3,51.26781]
[1744266938468,0.00601626,1612.5,1612.4,1.24073]
[1744266938658,0.00601626,1612.5,1612.4,4.44853]
[1744266939276,0.00601626,1612.5,1612.4,5.71983]
[1744266939966,0.00601626,1612.5,1612.4,46.51983]
[1744266940663,0.00601626,1612.5,1612.4,51.51983]
[1744266944872,1.64171626,1612.5,1612.4,51.51983]
[1744266945672,0.00601626,1612.5,1612.4,51.51983]
[1744266950991,7.92266626,1612.5,1612.4,45.8]
[1744266951197,18.25896626,1612.5,1612.4,45.8]
[1744266951490,15.05116626,1612.5,1612.4,45.8]
[1744266951790,15.05116626,1612.5,1612.4,40.8]
[1744266951989,1.24096,1612.1,1612.0,4.225]
[1744266952500,1.24096,1612.1,1612.0,45.025]
[1744266952796,1.24109,1612.0,1611.8,4.44893]
[1744266953098,1.676,1611.9,1611.6,3.2078]
[1744266953295,1.24125,1611.8,1611.7,40.8]
[1744266953690,2.77445,1611.8,1611.7,40.8]
[1744266954198,2.77445,1611.8,1611.7,45.8]
[1744266954398,8.60845,1611.8,1611.7,45.8]
[1744266955291,17.83345,1611.8,1611.7,5.0]
[1744266955599,1.24135,1611.6,1611.5,3.21711619]
[1744266955999,7.0753,1611.7,1611.5,3.21711619]
[1744266956297,1.5332,1611.6,1611.5,4.45849619]
[1744266957100,1.5332,1611.6,1611.5,9.45849619]
[1744266957689,2.77455,1611.6,1611.5,8.21711619]
[1744266957886,2.77455,1611.6,1611.5,5.00931619]
[1744266958091,4.00365,1611.6,1611.5,5.00931619]
[1744266960396,14.83765,1611.6,1611.5,5.00931619]
[1744266960697,14.83765,1611.6,1611.5,0.00931619]
[1744266961285,9.83765,1611.6,1611.5,0.00931619]
[1744266961693,1.24191,1610.9,1610.7,219.82588]
[1744266962003,1.24196,1610.8,1610.7,218.5839]
[1744266962189,1.24196,1610.8,1610.7,259.3839]
[1744266962594,1.5765,1611.0,1610.7,260.62594]
[1744266962792,1.24196,1610.8,1610.7,260.62594]
[1744266962989,1.24196,1610.8,1610.7,259.3839]
[1744266963194,2.87876,1610.8,1610.7,256.1761]
[1744266963395,8.71276,1610.8,1610.7,256.1761]
[1744266964197,8.71276,1610.8,1610.7,215.3761]
[1744266964401,13.71276,1610.8,1610.7,215.3761]
[1744266964895,14.86446,1610.8,1610.7,215.3761]
[1744266965798,9.86446,1610.8,1610.7,215.3761]
[1744266965998,8.6225,1610.8,1610.7,216.61814]
[1744266966299,8.71276,1610.8,1610.7,215.3761]
[1744266968108,8.71276,1610.8,1610.7,217.0493]
[1744266969502,1.6368,1610.8,1610.7,221.49914]
[1744266969702,1.6368,1610.8,1610.7,218.29134]
[1744266970010,2.87876,1610.8,1610.7,218.29134]
[1744266970411,2.87876,1610.8,1610.7,217.0493]
[1744266970607,2.87876,1610.8,1610.7,222.0493]
[1744266970810,2.87876,1610.8,1610.7,223.29134]
[1744266971005,0.00931619,1610.9,1610.8,1.24196]
[1744266971808,0.00931619,1610.9,1610.8,6.24196]
[1744266972009,0.00931619,1610.9,1610.8,11.24196]
[1744266972503,0.00931619,1610.9,1610.8,52.04196]
[1744266972904,1.25119619,1610.9,1610.8,45.8]
[1744266973706,1.25119619,1610.9,1610.8,47.04196]
[1744266973907,2.78869619,1610.9,1610.8,47.04196]
[1744266975609,1.54681619,1610.9,1610.8,47.04196]
[1744266975812,0.00931619,1610.9,1610.8,48.61866]
[1744266977211,1.25119619,1610.9,1610.8,48.61866]
[1744266977410,1.25119619,1610.9,1610.8,45.8]
[1744266978010,1.25119619,1610.9,1610.8,47.04196]
[1744266978711,1.25119619,1610.9,1610.8,48.57466]
[1744266981117,0.00931619,1610.9,1610.8,51.78246]
[1744266981318,0.00931619,1610.9,1610.8,61.04346]
[1744266982019,1.24155,1611.4,1611.3,1.24158]
[1744266982020,8.71605,1611.4,1611.3,1.24158]
[1744266982320,1.24158,1611.3,1611.2,1.2416]
[1744266982510,2.88208,1611.3,1611.2,1.2416]
[1744266982708,2.88208,1611.3,1611.2,2.918]
[1744266983213,1.24165,1611.2,1611.1,3.2078]
[1744266983515,2.88215,1611.2,1611.1,4.44953]
[1744266983918,1.6405,1611.2,1611.1,4.44953]
[1744266984122,1.24164,1611.3,1611.2,1.24165]
[1744266984313,7.48321626,1611.4,1611.2,2.85235]
[1744266984514,2.88478,1611.3,1611.2,1.6107]
[1744266984714,1.24165,1611.2,1611.1,9.44947]
[1744266984915,2.88485,1611.2,1611.1,9.44947]
[1744266985413,2.88485,1611.2,1611.1,11.06017]
[1744266985821,2.88485,1611.2,1611.1,9.8185]
[1744266986021,2.88485,1611.2,1611.1,11.06023]
[1744266986424,2.88485,1611.2,1611.1,9.8185]
[1744266986614,2.88485,1611.2,1611.1,11.06023]
[1744266987121,2.88485,1611.2,1611.1,9.44953]
[1744266987322,2.88485,1611.2,1611.1,8.2078]
[1744266988220,2.88485,1611.2,1611.1,9.44953]
[1744266988719,2.88485,1611.2,1611.1,5.0]
[1744266991323,2.88485,1611.2,1611.1,6.24173]
[1744266991722,1.6432,1611.2,1611.1,6.24173]
[1744266991923,1.6432,1611.2,1611.1,9.44953]
[1744266992122,2.88485,1611.2,1611.1,9.44953]
[1744266993123,1.6432,1611.2,1611.1,9.44953]
[1744266993322,2.88485,1611.2,1611.1,9.44953]
[1744266993522,1.6432,1611.2,1611.1,9.44953]
[1744266993724,11.34956626,1611.4,1611.3,1.24158]
[1744266993927,13.00986626,1611.4,1611.3,1.24158]
[1744266994525,13.00986626,1611.4,1611.3,2.79568]
[1744266994728,7.50031626,1611.4,1611.3,2.79568]
[1744266994918,7.50031626,1611.4,1611.3,6.00348]
[1744266995115,7.50031626,1611.4,1611.3,7.16678]
[1744266996128,7.50031626,1611.4,1611.3,12.16678]
[1744266996425,8.74181626,1611.4,1611.3,12.16678]
[1744266996726,7.50031626,1611.4,1611.3,12.16678]
[1744266997327,8.74181626,1611.4,1611.3,12.16678]
[1744266998924,2.90781626,1611.4,1611.3,12.16678]
[1744266999130,2.90781626,1611.4,1611.3,10.9252]
[1744266999428,2.90781626,1611.4,1611.3,7.7174]
[1744266999628,2.90781626,1611.4,1611.3,10.9252]
[1744266999923,2.90781626,1611.4,1611.3,7.7174]
[1744266999924,1.24751626,1611.4,1611.3,7.7174]
[1744267000126,1.24751626,1611.4,1611.3,12.16678]
[1744267000326,1.24751626,1611.4,1611.3,10.9252]
[1744267000631,2.84981626,1611.4,1611.3,5.0]
[1744267000826,7.84981626,1611.4,1611.3,5.0]
[1744267001323,2.84981626,1611.4,1611.3,5.0]
[1744267002034,1.24165,1611.2,1611.1,4.44953]
[1744267002219,1.24165,1611.2,1611.1,3.2078]
[1744267002619,2.90855,1611.2,1611.1,3.2078]
[1744267003732,2.90855,1611.2,1611.1,8.2078]
[1744267004334,7.17555,1611.2,1611.1,8.2078]
[1744267004832,13.00955,1611.2,1611.1,5.0]
[1744267005033,1.24181,1611.0,1610.9,2.2631]
[1744267005733,1.5619,1611.1,1611.0,1.24181]
[1744267005934,2.80363,1611.1,1611.0,2.87921]
[1744267006144,2.80363,1611.1,1611.0,1.6374]
[1744267006636,1.5619,1611.1,1611.0,2.87921]
[1744267006829,1.24173,1611.1,1611.0,2.87921]
[1744267007026,1.24173,1611.1,1611.0,1.6374]
[1744267007229,1.24181,1611.0,1610.9,7.2631]
[1744267007527,1.24181,1611.0,1610.9,5.14238]
[1744267007726,1.24181,1611.0,1610.9,3.9005]
[1744267008034,1.24181,1611.0,1610.9,8.9005]
[1744267014038,2.77171,1611.0,1610.9,8.9005]
[1744267020645,2.77171,1611.0,1610.9,10.14238]
[1744267021043,2.77171,1611.0,1610.9,8.9005]
[1744267021345,2.77171,1611.0,1610.9,10.14238]
[1744267022246,2.77171,1611.0,1610.9,8.9005]
[1744267025641,2.77171,1611.0,1610.9,6.1455]
[1744267025845,9.78041,1611.0,1610.9,5.0]
[1744267026049,1.24204,1610.7,1610.6,9.66763471]
[1744267026349,5.47204,1610.7,1610.6,9.66763471]
[1744267026544,10.47204,1610.7,1610.6,9.66763471]
[1744267026740,13.33924,1610.7,1610.6,9.66763471]
[1744267026948,13.33924,1610.7,1610.6,0.00931619]
[1744267028445,19.17324,1610.7,1610.6,6.19e-06]
[1744267028658,1.24212,1610.6,1610.5,6.22105471]
[1744267028853,11.92002,1610.6,1610.5,2.97216471]
[1744267029147,16.92002,1610.6,1610.5,2.17016471]
[1744267029343,1.24219,1610.5,1610.4,6.24759018]
[1744267029549,1.24235,1610.3,1610.2,18.87109388]
[1744267029747,8.68115,1610.3,1610.2,18.87109388]
[1744267029949,13.68115,1610.3,1610.2,18.87109388]
[1744267030449,15.36565,1610.3,1610.2,18.87109388]
[1744267031350,15.36565,1610.3,1610.1,19.24589654]
[1744267031351,1.24242,1610.2,1610.1,0.00931619]
[1744267031554,8.76092,1610.2,1610.1,0.00931619]
[1744267031848,13.76092,1610.2,1610.1,0.00931619]
[1744267032438,10.066,1610.2,1610.1,0.00931619]
[1744267032652,0.00931619,1610.4,1610.3,1.24235]
[1744267033343,0.00931619,1610.4,1610.3,7.82595]
[1744267033548,1.25158619,1610.4,1610.3,1.5836]
[1744267035055,1.25158619,1610.4,1610.3,2.82595]
[1744267035954,1.24235,1610.3,1610.2,2.3494]
[1744267036252,0.00931619,1610.4,1610.3,2.79495]
[1744267038247,1.25158619,1610.4,1610.3,2.79495]
[1744267038856,1.25158619,1610.4,1610.3,1.5526]
[1744267039056,1.25158619,1610.4,1610.3,2.79495]
[1744267039556,1.25158619,1610.4,1610.3,1.5526]
[1744267040658,2.80858619,1610.4,1610.3,1.5526]
[1744267040952,2.80858619,1610.4,1610.3,2.79495]
[1744267042559,2.80858619,1610.4,1610.3,1.5526]
[1744267042756,1.24235,1610.3,1610.2,4.45017]
[1744267043064,1.24235,1610.3,1610.1,0.00931619]
[1744267043065,1.24242,1610.2,1610.1,0.00931619]
[1744267043361,18.13092,1610.2,1610.1,6.19e-06]
[1744267045259,17.36292,1610.2,1610.1,6.19e-06]
[1744267047463,12.89152,1610.2,1610.1,6.19e-06]
[1744267047769,13.82377805,1610.2,1610.1,1.63960619]
[1744267048465,13.82377805,1610.2,1610.1,6.19e-06]
[1744267049163,15.01567805,1610.2,1610.1,6.19e-06]
[1744267050960,20.01567805,1610.2,1610.1,6.19e-06]
[1744267051165,1.24281,1609.7,1609.6,1.166]
[1744267051359,1.24296,1609.5,1609.4,4.7383]
[1744267051659,1.24296,1609.5,1609.4,47.94734]
[1744267051855,1.24294,1609.6,1609.5,1.24296]
[1744267052059,10.066,1609.7,1609.5,1.24296]
[1744267052060,11.30887,1609.7,1609.6,1.24289]
[1744267052259,11.30887,1609.7,1609.5,2.77341]
[1744267052464,1.24289,1609.6,1609.5,2.77341]
[1744267052663,11.30887,1609.7,1609.5,2.77341]
[1744267052963,11.30887,1609.7,1609.6,2.77339]
[1744267053358,11.30887,1609.7,1609.6,1.24289]
[1744267053668,1.24296,1609.5,1609.4,3.21711619]
[1744267053963,1.24295,1609.6,1609.4,45.26015619]
[1744267054159,1.24296,1609.5,1609.4,45.26015619]
[1744267054562,4.232,1609.7,1609.6,1.24289]
[1744267054763,7.07678,1609.8,1609.7,1.24281]
[1744267054957,7.07678,1609.8,1609.7,2.81971]
[1744267055357,7.07678,1609.8,1609.7,1.5769]
[1744267055960,8.76228,1609.8,1609.7,1.5769]
[1744267056257,1.24289,1609.6,1609.5,1.24296]
[1744267056459,1.6855,1609.7,1609.4,46.42969619]
[1744267056658,1.24296,1609.5,1609.4,46.42969619]
[1744267056960,1.24296,1609.5,1609.4,45.18671619]
[1744267057354,1.24296,1609.5,1609.4,44.01711619]
[1744267057665,1.24296,1609.5,1609.4,3.21711619]
[1744267057861,2.93556,1609.5,1609.4,3.21711619]
[1744267058169,2.93556,1609.5,1609.4,44.01711619]
[1744267060167,8.76956,1609.5,1609.4,3.21711619]
[1744267060471,13.04306,1609.5,1609.4,0.00931619]
[1744267060769,7.07696,1609.5,1609.4,0.00931619]
[1744267060958,5.4759,1609.6,1609.4,5.00931619]
[1744267061155,1.2429,1609.6,1609.5,1.6371]
[1744267061963,1.24296,1609.5,1609.4,0.00931619]
[1744267062166,1.24296,1609.5,1609.4,1.64641619]
[1744267062969,10.54766,1609.8,1609.4,6.64641619]
[1744267062970,7.4408,1609.8,1609.4,6.64641619]
[1744267063170,1.24283,1609.7,1609.5,4.4507]
[1744267063471,1.24283,1609.7,1609.6,1.6239]
[1744267063665,1.24283,1609.7,1609.6,2.7484]
[1744267063863,2.84503,1609.7,1609.6,2.7484]
[1744267064364,1.24289,1609.6,1609.5,3.2078]
[1744267064567,2.84509,1609.6,1609.5,4.8317]
[1744267065671,2.84509,1609.6,1609.5,3.2078]
[1744267065872,1.24296,1609.5,1609.4,0.00931619]
[1744267066073,2.84946,1609.5,1609.4,0.00931619]
[1744267067576,2.84946,1609.5,1609.4,1.59471619]
[1744267067982,1.24296,1609.5,1609.4,4.80251619]
[1744267069173,2.84946,1609.5,1609.4,4.80251619]
[1744267069373,2.84946,1609.5,1609.4,6.04555619]
[1744267069374,1.24296,1609.5,1609.4,6.04555619]
[1744267069971,1.24296,1609.5,1609.4,4.80251619]
[1744267070578,1.24296,1609.5,1609.4,6.04549619]
[1744267071878,5.834,1609.6,1609.5,1.24296]
[1744267072076,5.834,1609.6,1609.5,2.81686]
[1744267072276,1.24289,1609.6,1609.5,2.81686]
[1744267072777,1.24289,1609.6,1609.5,2.81681]
[1744267073471,1.24289,1609.6,1609.5,3.97691]
[1744267075679,1.24289,1609.6,1609.5,2.734]
[1744267076668,1.24296,1609.5,1609.4,0.00931619]
[1744267077582,2.80106,1609.5,1609.4,0.00931619]
[1744267078279,17.86906,1609.5,1609.4,0.00931619]
[1744267078973,12.86906,1609.5,1609.4,0.00931619]
[1744267081083,11.84286,1609.5,1609.4,0.00931619]
[1744267081384,8.63506,1609.5,1609.4,0.00931619]
[1744267081585,8.63506,1609.5,1609.4,1.68951619]
[1744267082290,13.45186838,1609.5,1609.4,1.68951619]
[1744267082688,13.45186838,1609.5,1609.4,2.93255619]
[1744267082881,13.45186838,1609.5,1609.4,1.68951619]
[1744267083888,7.61786838,1609.5,1609.4,1.68951619]
[1744267084188,7.61786838,1609.5,1609.4,2.93255619]
[1744267084488,6.05976838,1609.5,1609.4,2.93255619]
[1744267084680,4.81680838,1609.5,1609.4,2.93255619]
[1744267084880,4.81680838,1609.5,1609.4,7.93255619]
[1744267085592,4.81680838,1609.5,1609.4,13.92855619]
[1744267086986,9.60874553,1609.8,1609.4,13.92855619]
[1744267086987,4.81680838,1609.7,1609.6,1.24289]
[1744267087181,4.81680838,1609.7,1609.6,4.45069]
[1744267087382,4.81680838,1609.7,1609.6,9.45069]
[1744267087686,4.81680838,1609.7,1609.6,10.98759]
[1744267088390,4.81680838,1609.7,1609.6,5.98759]
[1744267091290,6.34990838,1609.7,1609.6,3.2078]
[1744267091482,7.44770838,1609.7,1609.5,2.42861]
[1744267091682,2.77599,1609.6,1609.5,2.42861]
[1744267092990,1.24296,1609.5,1609.4,10.45609619]
[1744267093188,2.77606,1609.5,1609.4,10.45609619]
[1744267094588,1.5331,1609.5,1609.4,10.45609619]
[1744267094983,1.5331,1609.5,1609.4,11.99749619]
[1744267095684,1.5331,1609.5,1609.4,6.00149619]
[1744267096891,2.34067,1609.7,1609.6,1.24289]
[1744267097085,10.081,1609.8,1609.7,1.24281]
[1744267097285,17.29483042,1609.8,1609.7,1.24281]
[1744267097491,13.04783042,1609.8,1609.7,1.24281]
[1744267097692,14.29056042,1609.8,1609.7,1.24281]
[1744267098289,15.83456042,1609.8,1609.7,1.24281]
[1744267098990,14.59183042,1609.8,1609.7,1.24281]
[1744267099201,14.59183042,1609.8,1609.7,2.89611]
[1744267099493,15.83456042,1609.8,1609.7,2.89611]
[1744267099694,14.59183042,1609.8,1609.7,2.89611]
[1744267100201,15.83456042,1609.8,1609.7,2.89611]
[1744267101592,10.00056042,1609.8,1609.7,2.89611]
[1744267102294,2.78673,1609.8,1609.7,2.89611]
[1744267102498,7.63415606,1609.8,1609.7,2.89611]
[1744267102889,6.39142606,1609.8,1609.7,2.89611]
[1744267103298,7.63415606,1609.8,1609.7,2.89611]
[1744267104001,7.63415606,1609.8,1609.7,1.24281]
[1744267104698,1.24281,1609.7,1609.6,3.2078]
[1744267104892,4.02651,1609.7,1609.6,3.2078]
[1744267105497,4.02651,1609.7,1609.6,4.45069]
[1744267105898,2.7837,1609.7,1609.6,4.45069]
[1744267106099,4.02651,1609.7,1609.6,7.28049]
[1744267107203,4.02651,1609.7,1609.6,6.0376]
[1744267107403,4.02651,1609.7,1609.6,3.2078]
[1744267107804,4.02651,1609.7,1609.6,4.45069]
[1744267108104,2.7837,1609.7,1609.6,4.45069]
[1744267108400,1.24296,1609.5,1609.4,3.21711619]
[1744267108704,1.24296,1609.5,1609.4,4.46015619]
[1744267109490,1.24296,1609.5,1609.4,4.46012619]
[1744267110197,2.84383,1609.6,1609.5,1.24296]
[1744267110600,1.24296,1609.5,1609.4,3.21711619]
[1744267110798,4.03076,1609.5,1609.4,3.21711619]
[1744267112091,4.03076,1609.5,1609.4,0.00931619]
[1744267117310,2.87406,1609.5,1609.4,0.00931619]
[1744267117506,1.6311,1609.5,1609.4,0.00931619]
[1744267117814,4.84742606,1609.6,1609.5,1.24296]
[1744267117815,6.09031606,1609.6,1609.5,1.24296]
[1744267118109,7.62131606,1609.6,1609.5,4.05576]
[1744267118311,2.77389,1609.6,1609.5,4.05576]
[1744267118811,2.77389,1609.6,1609.5,2.8128]
[1744267119011,2.77389,1609.6,1609.5,4.05576]
[1744267119215,1.531,1609.6,1609.5,4.05576]
[1744267119509,1.531,1609.6,1609.5,5.22696]
[1744267119713,11.95421553,1609.7,1609.6,1.24289]
[1744267119911,13.48521553,1609.7,1609.6,2.93009]
[1744267120611,13.48520553,1609.7,1609.6,1.24289]
[1744267120912,9.60874553,1609.7,1609.6,4.45069]
[1744267121412,9.60874553,1609.7,1609.6,6.14499]
[1744267123115,9.60874553,1609.7,1609.6,11.14499]
[1744267123315,11.18784553,1609.7,1609.6,11.14499]
[1744267123814,6.42294711,1609.7,1609.6,11.14499]
[1744267124415,7.66575711,1609.7,1609.6,8.2078]
[1744267124616,8.79095711,1609.7,1609.6,8.2078]
[1744267125515,8.79095711,1609.7,1609.6,4.45069]
[1744267126314,6.42294711,1609.7,1609.6,4.45069]
[1744267126612,6.42294711,1609.7,1609.6,5.53989]
[1744267127208,4.84384711,1609.7,1609.6,10.53989]
[1744267128113,6.45224711,1609.7,1609.6,10.53989]
[1744267128320,7.69505711,1609.7,1609.6,9.297]
[1744267128616,12.69505711,1609.7,1609.6,5.0]
[1744267129322,7.69505711,1609.7,1609.6,5.0]
[1744267130120,1.24296,1609.5,1609.4,0.00931619]
[1744267130818,2.82146,1609.5,1609.4,0.00931619]
[1744267131722,7.05546,1609.5,1609.4,0.00931619]
[1744267132322,12.88946,1609.5,1609.4,0.00931619]
[1744267132713,17.88946,1609.5,1609.4,0.00931619]
[1744267133616,12.88946,1609.5,1609.4,0.00931619]
[1744267135111,17.88946,1609.5,1609.4,0.00931619]
[1744267135517,12.88946,1609.5,1609.4,0.00931619]
[1744267138127,23.43064836,1609.5,1609.4,0.00931619]
[1744267141815,10.54118836,1609.5,1609.4,7.92715619]
[1744267142828,10.54118836,1609.5,1609.4,12.92715619]
[1744267143429,8.18304232,1609.5,1609.4,12.92715619]
[1744267143632,6.37004232,1609.5,1609.4,12.92715619]
[1744267143933,6.37004232,1609.5,1609.4,18.92315619]
[1744267144126,6.37004232,1609.5,1609.4,59.72315619]
[1744267145639,1.03604233,1609.5,1609.4,59.72315619]
[1744267146138,9.60874553,1609.7,1609.6,1.24289]
[1744267146341,9.60874553,1609.7,1609.6,8.68469]
[1744267146543,9.60874553,1609.7,1609.6,13.68469]
[1744267147036,10.85155553,1609.7,1609.6,49.4373]
[1744267147235,9.60874553,1609.7,1609.6,49.4373]
[1744267147442,10.85155553,1609.7,1609.6,45.2033]
[1744267147635,10.85155553,1609.7,1609.6,50.2033]
[1744267148243,9.60874553,1609.7,1609.6,51.44619]
[1744267149651,2.9281,1609.8,1609.6,51.44619]
[1744267149852,2.9281,1609.8,1609.7,1.559]
[1744267150149,2.9281,1609.8,1609.7,2.80181]
[1744267150343,1.1959,1609.9,1609.7,2.80181]
[1744267150539,1.1959,1609.9,1609.7,1.559]
[1744267150744,1.24273,1609.8,1609.7,1.559]
[1744267151251,2.90303,1609.8,1609.7,1.559]
[1744267151452,2.90303,1609.8,1609.7,6.559]
[1744267151643,2.90303,1609.8,1609.7,7.80181]
[1744267152245,2.90303,1609.8,1609.7,6.559]
[1744267152454,3.99123,1609.8,1609.7,5.0]
[1744267153644,3.99123,1609.8,1609.7,6.24281]
[1744267153844,3.99123,1609.8,1609.7,5.0]
[1744267154150,3.99123,1609.8,1609.7,6.24281]
[1744267154351,3.99123,1609.8,1609.7,5.0]
[1744267157958,1.24273,1609.8,1609.7,6.24281]
[1744267158156,1.24273,1609.8,1609.7,7.89741]
[1744267159057,3.98251,1609.9,1609.8,1.24273]
[1744267159254,2.78661,1609.9,1609.8,6.10513]
[1744267159461,2.78661,1609.9,1609.8,7.25983]
[1744267161060,2.78661,1609.9,1609.8,6.0171]
[1744267161358,2.78661,1609.9,1609.8,7.25983]
[1744267161959,2.78661,1609.9,1609.8,6.0171]
[1744267163060,2.78661,1609.9,1609.8,2.8093]
[1744267163461,2.78661,1609.9,1609.8,4.05203]
[1744267164361,1.24271,1609.9,1609.8,4.05203]
[1744267165056,3.94383,1610.0,1609.9,1.24266]
[1744267165257,3.94383,1610.0,1609.9,2.84086]
[1744267165762,3.94383,1610.0,1609.9,1.5982]
[1744267166363,3.94383,1610.0,1609.9,2.84086]
[1744267167062,3.94383,1610.0,1609.9,5.0]
[1744267168264,1.24273,1609.8,1609.7,4.45058]
[1744267168665,1.24273,1609.8,1609.7,6.12748]
[1744267169262,2.88942,1609.9,1609.8,1.24273]
[1744267169463,2.88942,1609.9,1609.8,2.91963]
[1744267170767,2.88942,1609.9,1609.8,4.19623]
[1744267171366,2.88942,1609.9,1609.8,9.19623]
[1744267174667,1.6467,1609.9,1609.8,9.19623]
[1744267175267,2.88936,1609.9,1609.8,9.19623]
[1744267175469,1.1531,1610.1,1610.0,1.24258]
[1744267175670,1.1531,1610.1,1609.9,2.861]
[1744267175869,2.81818,1610.0,1609.9,2.861]
[1744267176172,1.24255,1610.1,1610.0,1.24254]
[1744267176372,1.5756,1610.1,1610.0,6.03904]
[1744267177678,2.8181,1610.1,1610.0,11.03904]
[1744267178767,8.25908,1610.2,1610.1,1.2425]
[1744267178969,7.62917479,1610.3,1610.2,1.24242]
[1744267179368,7.62917479,1610.3,1610.2,6.10282]
[1744267179674,7.62917479,1610.3,1610.2,7.27572]
[1744267180373,7.62917479,1610.3,1610.2,12.27572]
[1744267181378,7.62917479,1610.3,1610.2,11.0333]
[1744267181679,7.62917479,1610.3,1610.2,9.8604]
[1744267182174,7.62917479,1610.3,1610.2,8.2078]
[1744267182678,7.62917479,1610.3,1610.2,3.2078]
[1744267183077,7.62917479,1610.3,1610.2,4.45022]
[1744267183376,2.79409,1610.3,1610.2,4.45022]
[1744267184876,2.79409,1610.3,1610.2,3.2078]
[1744267185380,2.79409,1610.3,1610.2,4.45022]
[1744267185676,1.5517,1610.3,1610.2,4.45022]
[1744267185978,2.50761619,1610.4,1610.3,1.24235]
[1744267186279,2.50761619,1610.4,1610.3,2.89745]
[1744267186482,4.16621619,1610.4,1610.3,2.89745]
[1744267186883,5.40848619,1610.4,1610.3,2.89745]
[1744267187184,10.24357098,1610.4,1610.3,2.89745]
[1744267188485,7.78630098,1610.4,1610.3,2.89745]
[1744267188677,9.02857098,1610.4,1610.3,2.89745]
[1744267188982,6.08667098,1610.4,1610.3,2.89745]
[1744267189182,4.84440098,1610.4,1610.3,7.89745]
[1744267189677,6.08667098,1610.4,1610.3,7.89745]
[1744267189880,6.44810098,1610.4,1610.3,7.89745]
[1744267191489,2.85528619,1610.4,1610.3,6.24235]
[1744267192986,2.85528619,1610.4,1610.3,5.0]
[1744267193384,2.85528619,1610.4,1610.3,6.24235]